[Event "44th Chess Olympiad Open 2022"]
[Site "Chennai"]
[Date "2022.08.08"]
[Round "10.80"]
[White "Khan, Taffin"]
[Black "Muheto, Dieudonne"]
[Result "1/2-1/2"]
[WhiteElo "2019"]
[BlackElo "1830"]
[Annotator "NA RC"]
[PlyCount "94"]
[EventDate "2022.??.??"]
[TimeControl "60"]

1. d4 {[%emt 0:00:04]} Nf6 {[%emt 0:00:30]} 2. c4 {[%emt 0:00:13]} c5 {[%emt 0:
00:00]} 3. d5 {[%emt 0:00:11]} b5 {[%emt 0:00:12]} 4. cxb5 {[%emt 0:00:15]} a6
{[%emt 0:00:06]} 5. bxa6 {[%emt 0:00:11]} g6 {[%emt 0:00:31]} 6. Nc3 {[%emt 0:
00:00]} Bg7 {[%emt 0:00:07]} 7. e4 {[%emt 0:02:24]} O-O {[%emt 0:00:12]} 8. Nf3
{[%emt 0:08:46]} Qa5 {[%emt 0:00:07]} 9. Bd2 {[%emt 0:00:11]} Bxa6 {[%emt 0:00:
00]} 10. Bxa6 {[%emt 0:03:27]} Qxa6 {[%emt 0:00:17]} 11. Qe2 {[%emt 0:00:07]}
Qxe2+ {[%emt 0:00:36]} 12. Kxe2 {[%emt 0:00:08]} Na6 {[%emt 0:00:45]} 13. a3 {
[%emt 0:07:14]} d6 {[%emt 0:01:04]} 14. h3 {[%emt 0:01:24]} Nd7 {[%emt 0:00:15]
} 15. Rab1 {[%emt 0:03:12]} c4 {[%emt 0:00:36]} 16. Na2 {[%emt 0:01:01]} Ndc5 {
[%emt 0:00:33]} 17. Rhc1 {[%emt 0:04:46]} Nxe4 {[%emt 0:02:07]} 18. Rxc4 {
[%emt 0:00:17]} Nxd2 {[%emt 0:00:10]} 19. Nxd2 {[%emt 0:00:42]} Rfc8 {[%emt 0:
00:00]} 20. Rc6 {[%emt 0:20:26]} Rcb8 {[%emt 0:04:42]} 21. b4 {[%emt 0:00:54]}
Rb5 {[%emt 0:00:15]} 22. Nc3 {[%emt 0:15:35]} Bxc3 {[%emt 0:00:15]} 23. Rxc3 {
[%emt 0:00:06]} Rxd5 {[%emt 0:00:30]} 24. Rc6 {[%emt 0:06:54]} Rb5 {[%emt 0:00:
00]} 25. Ne4 {[%emt 0:03:30]} Kg7 {[%emt 0:01:24]} 26. Nc3 {[%emt 0:00:59]}
Re5+ {[%emt 0:00:49]} 27. Kd3 {[%emt 0:00:11]} g5 {[%emt 0:01:57]} 28. a4 {
[%emt 0:01:51]} h5 {[%emt 0:02:01]} 29. a5 {[%emt 0:01:00]} Nxb4+ {[%emt 0:00:
00]} 30. Rxb4 {[%emt 0:00:16]} Raxa5 {[%emt 0:00:13]} 31. Rcc4 {[%emt 0:08:07]}
Re1 {[%emt 0:02:40]} 32. Re4 {[%emt 0:00:23]} Rg1 {[%emt 0:01:21]} 33. g3 {
[%emt 0:00:51]} e6 {[%emt 0:01:09]} 34. h4 {[%emt 0:03:09]} Rf1 {[%emt 0:01:52]
} 35. Re2 {[%emt 0:03:09]} Rf5 {[%emt 0:01:39]} 36. Ne4 {[%emt 0:05:03]} g4 {
[%emt 0:02:25]} 37. Rbb2 {[%emt 0:01:02]} Rc1 {[%emt 0:01:50]} 38. Rbc2 {
[%emt 0:00:37]} Rd1+ {[%emt 0:00:41]} 39. Red2 {[%emt 0:00:30]} Rf3+ {[%emt 0:
00:00]} 40. Ke2 {[%emt 0:00:14]} Rxd2+ {[%emt 0:00:38]} 41. Rxd2 {[%emt 0:00:
00]} d5 {[%emt 0:31:25]} 42. Nc5 {[%emt 0:00:38]} Rc3 {[%emt 0:00:49]} 43. Nd3
{[%emt 0:00:17]} Rc4 {[%emt 0:04:30]} 44. Nf4 {[%emt 0:00:00]} Re4+ {[%emt 0:
00:00]} 45. Kd1 {[%emt 0:00:00]} Re5 {[%emt 0:00:00]} 46. Re2 {[%emt 0:00:00]}
Rf5 {[%emt 0:00:00]} 47. Kd2 {[%emt 0:00:00]} Kf8 {[%emt 0:00:00]} 1/2-1/2

[Event "44th Chess Olympiad Open 2022"]
[Site "Chennai"]
[Date "2022.08.08"]
[Round "10.80"]
[White "Elvis Havyarimana"]
[Black "Lee, Ethan"]
[Result "1/2-1/2"]
[WhiteElo "1724"]
[BlackElo "1629"]
[Annotator "NA RC"]
[PlyCount "112"]
[EventDate "2022.??.??"]
[TimeControl "60"]

1. d4 {[%emt 0:00:07]} d5 {[%emt 0:00:01]} 2. c4 {[%emt 0:00:05]} Nf6 {[%emt 0:
00:00]} 3. Nc3 {[%emt 0:00:13]} e6 {[%emt 0:00:24]} 4. e3 {[%emt 0:00:06]} Be7
{[%emt 0:00:49]} 5. Nf3 {[%emt 0:00:14]} c6 {[%emt 0:03:29]} 6. Bd3 {[%emt 0:
00:00]} O-O {[%emt 0:01:32]} 7. O-O {[%emt 0:00:10]} b6 {[%emt 0:01:58]} 8. Bd2
{[%emt 0:03:22]} Ba6 {[%emt 0:02:00]} 9. b3 {[%emt 0:00:38]} dxc4 {[%emt 0:00:
00]} 10. bxc4 {[%emt 0:00:42]} c5 {[%emt 0:00:46]} 11. Re1 {[%emt 0:11:46]}
cxd4 {[%emt 0:03:31]} 12. exd4 {[%emt 0:02:20]} Nc6 {[%emt 0:02:31]} 13. Bf4 {
[%emt 0:05:43]} Rc8 {[%emt 0:07:37]} 14. d5 {[%emt 0:18:56]} exd5 {[%emt 0:00:
00]} 15. Nxd5 {[%emt 0:03:31]} Nxd5 {[%emt 0:00:37]} 16. cxd5 {[%emt 0:00:41]}
Bxd3 {[%emt 0:00:27]} 17. dxc6 {[%emt 0:06:32]} Bb5 {[%emt 0:03:44]} 18. c7 {
[%emt 0:04:25]} Rxc7 {[%emt 0:12:35]} 19. Qxd8 {[%emt 0:01:58]} Bxd8 {[%emt 0:
00:00]} 20. Bxc7 {[%emt 0:00:08]} Bxc7 {[%emt 0:00:05]} 21. Re7 {[%emt 0:03:27]
} Bb8 {[%emt 0:01:39]} 22. a4 {[%emt 0:01:54]} Re8 {[%emt 0:05:15]} 23. Rae1 {
[%emt 0:02:51]} Rxe7 {[%emt 0:01:00]} 24. Rxe7 {[%emt 0:00:09]} Bxa4 {[%emt 0:
00:00]} 25. Rb7 {[%emt 0:00:27]} Bd6 {[%emt 0:00:25]} 26. Rxa7 {[%emt 0:00:17]}
b5 {[%emt 0:00:30]} 27. Ne5 {[%emt 0:02:13]} h6 {[%emt 0:04:24]} 28. Ra8+ {
[%emt 0:01:14]} Kh7 {[%emt 0:00:04]} 29. Nxf7 {[%emt 0:00:13]} Bc7 {[%emt 0:00:
00]} 30. Ra7 {[%emt 0:01:45]} Bb6 {[%emt 0:00:24]} 31. Rb7 {[%emt 0:02:25]} Bc5
{[%emt 0:00:33]} 32. Ne5 {[%emt 0:00:44]} Bd6 {[%emt 0:05:44]} 33. Nc6 {
[%emt 0:04:48]} Kg6 {[%emt 0:00:56]} 34. Ne7+ {[%emt 0:00:46]} Kg5 {[%emt 0:00:
00]} 35. Nd5 {[%emt 0:00:17]} Be5 {[%emt 0:03:03]} 36. f4+ {[%emt 0:00:23]}
Bxf4 {[%emt 0:00:13]} 37. Nxf4 {[%emt 0:00:06]} Kxf4 {[%emt 0:00:15]} 38. Rxg7
{[%emt 0:00:07]} Ke3 {[%emt 0:00:22]} 39. Rh7 {[%emt 0:00:25]} Kd3 {[%emt 0:00:
00]} 40. Rxh6 {[%emt 0:00:06]} Bc2 {[%emt 0:00:46]} 41. Rb6 {[%emt 0:30:56]}
Kc4 {[%emt 0:30:04]} 42. h4 {[%emt 0:00:23]} b4 {[%emt 0:00:07]} 43. g4 {
[%emt 0:00:54]} b3 {[%emt 0:00:45]} 44. g5 {[%emt 0:00:25]} Kc3 {[%emt 0:00:32]
} 45. g6 {[%emt 0:01:03]} b2 {[%emt 0:00:53]} 46. Rxb2 {[%emt 0:00:07]} Kxb2 {
[%emt 0:00:09]} 47. g7 {[%emt 0:02:42]} Bh7 {[%emt 0:00:56]} 48. Kg2 {[%emt 0:
00:00]} Kc3 {[%emt 0:00:24]} 49. Kg3 {[%emt 0:00:06]} Kd4 {[%emt 0:00:21]} 50.
Kf4 {[%emt 0:00:15]} Kd5 {[%emt 0:00:20]} 51. Kg5 {[%emt 0:00:33]} Ke6 {
[%emt 0:00:55]} 52. Kh6 {[%emt 0:00:26]} Bg8 {[%emt 0:01:51]} 53. Kg6 {[%emt 0:
00:00]} Ke7 {[%emt 0:00:14]} 54. h5 {[%emt 0:00:11]} Bf7+ {[%emt 0:04:58]} 55.
Kh7 {[%emt 0:00:15]} Kf6 {[%emt 0:00:06]} 56. h6 {[%emt 0:00:49]} Kg5 {[%emt 0:
00:00]} 1/2-1/2

[Event "44th Chess Olympiad Open 2022"]
[Site "Chennai"]
[Date "2022.08.08"]
[Round "10.80"]
[White "Nathoo, Loris"]
[Black "Mutabazi Hugues"]
[Result "1-0"]
[WhiteElo "1695"]
[BlackElo "1666"]
[Annotator "NA RC"]
[PlyCount "108"]
[EventDate "2022.??.??"]
[TimeControl "60"]

1. d4 {[%emt 0:00:04]} Nf6 {[%emt 0:00:06]} 2. Bf4 {[%emt 0:00:09]} d5 {
[%emt 0:00:38]} 3. e3 {[%emt 0:00:23]} e6 {[%emt 0:00:24]} 4. Nf3 {[%emt 0:00:
00]} c5 {[%emt 0:01:10]} 5. c3 {[%emt 0:02:03]} Nc6 {[%emt 0:01:04]} 6. Nbd2 {
[%emt 0:02:07]} Be7 {[%emt 0:00:37]} 7. Bd3 {[%emt 0:01:36]} cxd4 {[%emt 0:00:
00]} 8. exd4 {[%emt 0:03:24]} Qb6 {[%emt 0:01:14]} 9. Qc2 {[%emt 0:04:30]} h6 {
[%emt 0:00:20]} 10. h3 {[%emt 0:03:17]} Bd7 {[%emt 0:00:31]} 11. Ne5 {[%emt 0:
00:00]} Rc8 {[%emt 0:01:02]} 12. Qb3 {[%emt 0:09:21]} Qxb3 {[%emt 0:05:57]} 13.
axb3 {[%emt 0:04:55]} a6 {[%emt 0:00:23]} 14. O-O {[%emt 0:04:07]} O-O {
[%emt 0:04:20]} 15. b4 {[%emt 0:05:54]} Nxe5 {[%emt 0:01:24]} 16. Bxe5 {
[%emt 0:01:03]} Ne8 {[%emt 0:00:31]} 17. Bh2 {[%emt 0:03:28]} Nd6 {[%emt 0:00:
00]} 18. Nb3 {[%emt 0:14:41]} Bc6 {[%emt 0:00:44]} 19. Na5 {[%emt 0:01:29]}
Rfd8 {[%emt 0:03:43]} 20. Ra2 {[%emt 0:05:50]} Rd7 {[%emt 0:00:47]} 21. Nxc6 {
[%emt 0:02:42]} Rxc6 {[%emt 0:00:56]} 22. Bxd6 {[%emt 0:05:46]} Rcxd6 {[%emt 0:
00:00]} 23. b5 {[%emt 0:00:13]} axb5 {[%emt 0:00:56]} 24. Bxb5 {[%emt 0:00:11]}
Rd8 {[%emt 0:00:29]} 25. Bd3 {[%emt 0:01:43]} Rb6 {[%emt 0:02:21]} 26. f4 {
[%emt 0:02:04]} g6 {[%emt 0:00:00]} 27. g4 {[%emt 0:01:31]} Kg7 {[%emt 0:11:53]
} 28. Kg2 {[%emt 0:05:46]} Bh4 {[%emt 0:00:36]} 29. Rb1 {[%emt 0:01:02]} Rc8 {
[%emt 0:02:38]} 30. Ra5 {[%emt 0:00:42]} Bf6 {[%emt 0:01:41]} 31. Rb5 {[%emt 0:
00:00]} Rcc6 {[%emt 0:00:21]} 32. Rxb6 {[%emt 0:00:38]} Rxb6 {[%emt 0:00:07]}
33. Kf3 {[%emt 0:00:40]} Be7 {[%emt 0:01:58]} 34. b3 {[%emt 0:06:06]} Bf6 {
[%emt 0:03:41]} 35. Ke3 {[%emt 0:00:59]} Kf8 {[%emt 0:01:14]} 36. Kd2 {[%emt 0:
00:00]} Ke7 {[%emt 0:00:37]} 37. Kc2 {[%emt 0:00:17]} Rc6 {[%emt 0:02:24]} 38.
Kb2 {[%emt 0:00:14]} Kd6 {[%emt 0:01:08]} 39. Ra1 {[%emt 0:00:16]} Rc8 {
[%emt 0:00:13]} 40. Rh1 {[%emt 0:04:14]} g5 {[%emt 0:02:45]} 41. Rf1 {[%emt 0:
00:00]} Ke7 {[%emt 0:00:32]} 42. Bb5 {[%emt 0:05:05]} Rc7 {[%emt 0:06:31]} 43.
Rf3 {[%emt 0:03:47]} Bg7 {[%emt 0:01:18]} 44. fxg5 {[%emt 0:00:57]} hxg5 {
[%emt 0:00:11]} 45. Ka3 {[%emt 0:00:14]} Kd6 {[%emt 0:02:05]} 46. Kb4 {[%emt 0:
00:00]} e5 {[%emt 0:06:58]} 47. dxe5+ {[%emt 0:00:33]} Bxe5 {[%emt 0:00:06]}
48. Rd3 {[%emt 0:02:53]} Ke6 {[%emt 0:02:07]} 49. c4 {[%emt 0:01:41]} dxc4 {
[%emt 0:07:39]} 50. Bxc4+ {[%emt 0:01:12]} Ke7 {[%emt 0:00:05]} 51. Kb5 {
[%emt 0:01:29]} Rc6 {[%emt 0:03:42]} 52. Bd5 {[%emt 0:00:27]} Rd6 {[%emt 0:00:
00]} 53. Be4 {[%emt 0:01:23]} Rxd3 {[%emt 0:00:57]} 54. Bxd3 {[%emt 0:00:05]}
Bd4 {[%emt 0:00:12]} 1-0

[Event "44th Chess Olympiad Open 2022"]
[Site "Chennai"]
[Date "2022.08.08"]
[Round "10.81"]
[White "Fuad, Ahmed Mufleh"]
[Black "Bridet, Robert"]
[Result "1-0"]
[WhiteElo "2086"]
[BlackElo "1497"]
[Annotator "NA RC"]
[PlyCount "101"]
[EventDate "2022.??.??"]
[TimeControl "60"]

1. d4 {[%emt 0:00:02]} Nf6 {[%emt 0:00:10]} 2. c4 {[%emt 0:00:08]} e6 {[%emt 0:
00:00]} 3. Nf3 {[%emt 0:00:19]} d5 {[%emt 0:00:30]} 4. g3 {[%emt 0:01:09]} Be7
{[%emt 0:00:41]} 5. Bg2 {[%emt 0:00:12]} c6 {[%emt 0:00:33]} 6. O-O {[%emt 0:
00:00]} Nbd7 {[%emt 0:00:20]} 7. Nc3 {[%emt 0:00:23]} O-O {[%emt 0:00:23]} 8.
Re1 {[%emt 0:00:34]} Nb6 {[%emt 0:06:42]} 9. c5 {[%emt 0:01:55]} Nbd7 {[%emt 0:
00:00]} 10. b4 {[%emt 0:02:19]} Re8 {[%emt 0:08:16]} 11. a4 {[%emt 0:00:49]}
Nf8 {[%emt 0:00:44]} 12. b5 {[%emt 0:00:27]} Ng6 {[%emt 0:00:42]} 13. e4 {
[%emt 0:08:05]} dxe4 {[%emt 0:07:05]} 14. Ng5 {[%emt 0:02:23]} Nd5 {[%emt 0:00:
00]} 15. Ngxe4 {[%emt 0:08:17]} f5 {[%emt 0:07:15]} 16. Nxd5 {[%emt 0:06:01]}
exd5 {[%emt 0:00:30]} 17. Nd6 {[%emt 0:04:34]} Rf8 {[%emt 0:06:45]} 18. Nxc8 {
[%emt 0:00:25]} Rxc8 {[%emt 0:00:58]} 19. h4 {[%emt 0:04:43]} Rf7 {[%emt 0:00:
00]} 20. h5 {[%emt 0:01:00]} Nf8 {[%emt 0:00:33]} 21. Bf4 {[%emt 0:02:10]} Qd7
{[%emt 0:01:35]} 22. Qd3 {[%emt 0:01:31]} Ne6 {[%emt 0:04:12]} 23. Be5 {
[%emt 0:00:36]} Bf6 {[%emt 0:06:53]} 24. Qxf5 {[%emt 0:07:33]} Nxc5 {[%emt 0:
00:00]} 25. Qxd7 {[%emt 0:01:15]} Nxd7 {[%emt 0:00:11]} 26. Bh3 {[%emt 0:00:41]
} Rd8 {[%emt 0:00:53]} 27. Be6 {[%emt 0:00:23]} Kf8 {[%emt 0:00:31]} 28. Bxf7 {
[%emt 0:00:14]} Kxf7 {[%emt 0:00:31]} 29. bxc6 {[%emt 0:00:45]} bxc6 {[%emt 0:
00:00]} 30. Rab1 {[%emt 0:00:41]} Bxe5 {[%emt 0:01:12]} 31. dxe5 {[%emt 0:00:
00]} Nc5 {[%emt 0:00:53]} 32. Rec1 {[%emt 0:04:03]} Nd7 {[%emt 0:02:15]} 33.
Rxc6 {[%emt 0:02:38]} Nxe5 {[%emt 0:00:22]} 34. Rb7+ {[%emt 0:00:21]} Rd7 {
[%emt 0:04:14]} 35. Rxd7+ {[%emt 0:00:28]} Nxd7 {[%emt 0:00:18]} 36. Rc7 {
[%emt 0:00:05]} Ke6 {[%emt 0:00:06]} 37. Rxa7 {[%emt 0:00:11]} d4 {[%emt 0:00:
00]} 38. Kf1 {[%emt 0:00:42]} g6 {[%emt 0:00:24]} 39. hxg6 {[%emt 0:01:09]}
hxg6 {[%emt 0:01:50]} 40. Ra6+ {[%emt 0:00:00]} Ke5 {[%emt 0:01:10]} 41. Ke2 {
[%emt 0:31:20]} d3+ {[%emt 0:30:15]} 42. Ke3 {[%emt 0:00:27]} Kf5 {[%emt 0:00:
00]} 43. Ra5+ {[%emt 0:01:23]} Kg4 {[%emt 0:00:20]} 44. Rd5 {[%emt 0:01:06]}
Nb6 {[%emt 0:01:48]} 45. Rd4+ {[%emt 0:00:25]} Kf5 {[%emt 0:00:50]} 46. a5 {
[%emt 0:00:12]} Nc8 {[%emt 0:01:05]} 47. a6 {[%emt 0:00:16]} Na7 {[%emt 0:00:
00]} 48. Kxd3 {[%emt 0:00:30]} g5 {[%emt 0:01:12]} 49. Kc4 {[%emt 0:00:30]} g4
{[%emt 0:00:08]} 50. Kc5 {[%emt 0:00:12]} Ke5 {[%emt 0:00:43]} 51. Rxg4 {
[%emt 0:00:17]} 1-0

[Event "44th Chess Olympiad Open 2022"]
[Site "Chennai"]
[Date "2022.08.08"]
[Round "10.81"]
[White "Ahmed Aboobakuru"]
[Black "Thomas, Larry"]
[Result "1/2-1/2"]
[WhiteElo "1676"]
[BlackElo "1317"]
[Annotator "NA RC"]
[PlyCount "238"]
[EventDate "2022.??.??"]
[TimeControl "60"]

1. d4 {[%emt 0:00:02]} Nf6 {[%emt 0:00:04]} 2. c4 {[%emt 0:00:18]} d5 {[%emt 0:
00:00]} 3. Nc3 {[%emt 0:01:23]} e6 {[%emt 0:01:14]} 4. Bg5 {[%emt 0:01:33]} Be7
{[%emt 0:00:57]} 5. cxd5 {[%emt 0:01:05]} exd5 {[%emt 0:02:12]} 6. Nf3 {
[%emt 0:00:56]} c6 {[%emt 0:00:50]} 7. e3 {[%emt 0:00:30]} O-O {[%emt 0:02:35]}
8. Rc1 {[%emt 0:02:12]} Nbd7 {[%emt 0:02:38]} 9. Bd3 {[%emt 0:00:34]} Re8 {
[%emt 0:01:19]} 10. O-O {[%emt 0:00:24]} Nf8 {[%emt 0:01:41]} 11. h3 {[%emt 0:
00:00]} Be6 {[%emt 0:04:18]} 12. Bf4 {[%emt 0:00:41]} Ng6 {[%emt 0:03:39]} 13.
Bh2 {[%emt 0:01:32]} Bd6 {[%emt 0:00:49]} 14. Ne5 {[%emt 0:01:25]} Nf8 {
[%emt 0:06:38]} 15. Kh1 {[%emt 0:00:54]} Qc7 {[%emt 0:01:42]} 16. Nb5 {[%emt 0:
00:00]} Qd8 {[%emt 0:04:29]} 17. Nxd6 {[%emt 0:00:39]} Qxd6 {[%emt 0:00:06]}
18. Nxf7 {[%emt 0:00:16]} Qb4 {[%emt 0:03:02]} 19. Ne5 {[%emt 0:04:00]} Rac8 {
[%emt 0:05:46]} 20. Qc2 {[%emt 0:01:46]} N6d7 {[%emt 0:04:16]} 21. Nxd7 {
[%emt 0:01:26]} Bxd7 {[%emt 0:00:18]} 22. a3 {[%emt 0:00:30]} Qe7 {[%emt 0:00:
00]} 23. Qc5 {[%emt 0:00:34]} Qxc5 {[%emt 0:00:02]} 24. Rxc5 {[%emt 0:00:21]}
Ne6 {[%emt 0:00:30]} 25. Rc2 {[%emt 0:01:21]} g6 {[%emt 0:01:39]} 26. Rfc1 {
[%emt 0:01:25]} Ng7 {[%emt 0:01:54]} 27. g4 {[%emt 0:00:48]} Ne6 {[%emt 0:00:
00]} 28. Kg2 {[%emt 0:02:00]} Rf8 {[%emt 0:02:46]} 29. f4 {[%emt 0:09:12]} Ng7
{[%emt 0:02:03]} 30. Rf1 {[%emt 0:02:00]} Rce8 {[%emt 0:00:30]} 31. Re2 {
[%emt 0:01:20]} a6 {[%emt 0:02:32]} 32. e4 {[%emt 0:03:38]} dxe4 {[%emt 0:00:
00]} 33. Rxe4 {[%emt 0:00:39]} Be6 {[%emt 0:00:23]} 34. Re5 {[%emt 0:02:01]}
Rd8 {[%emt 0:04:18]} 35. Bg1 {[%emt 0:00:14]} Bd5+ {[%emt 0:02:03]} 36. Kg3 {
[%emt 0:00:18]} Rf7 {[%emt 0:04:05]} 37. Be3 {[%emt 0:00:59]} Rdf8 {[%emt 0:00:
00]} 38. Rf2 {[%emt 0:06:47]} Rf6 {[%emt 0:03:57]} 39. Re7 {[%emt 0:03:39]}
R6f7 {[%emt 0:00:01]} 40. Rxf7 {[%emt 0:01:45]} Rxf7 {[%emt 0:00:02]} 41. b4 {
[%emt 0:37:07]} Re7 {[%emt 0:31:46]} 42. Re2 {[%emt 0:00:40]} Rf7 {[%emt 0:00:
00]} 43. Bf2 {[%emt 0:00:56]} Kf8 {[%emt 0:03:08]} 44. Re5 {[%emt 0:01:18]} Rf6
{[%emt 0:01:39]} 45. a4 {[%emt 0:02:53]} b5 {[%emt 0:00:55]} 46. axb5 {[%emt 0:
00:00]} axb5 {[%emt 0:00:02]} 47. Bxb5 {[%emt 0:00:19]} Ne8 {[%emt 0:02:22]}
48. Bd3 {[%emt 0:00:53]} Rd6 {[%emt 0:04:02]} 49. b5 {[%emt 0:01:30]} cxb5 {
[%emt 0:00:11]} 50. Bxb5 {[%emt 0:00:14]} Nc7 {[%emt 0:00:40]} 51. Bd3 {
[%emt 0:00:44]} Kf7 {[%emt 0:00:31]} 52. Be4 {[%emt 0:01:23]} Bxe4 {[%emt 0:00:
00]} 53. Rxe4 {[%emt 0:00:16]} Nd5 {[%emt 0:00:55]} 54. Kf3 {[%emt 0:02:21]} h6
{[%emt 0:00:21]} 55. Re5 {[%emt 0:01:13]} Nb4 {[%emt 0:02:31]} 56. Ke4 {
[%emt 0:01:29]} Nc6 {[%emt 0:01:40]} 57. Rc5 {[%emt 0:00:55]} Re6+ {[%emt 0:00:
00]} 58. Kf3 {[%emt 0:01:43]} Rf6 {[%emt 0:02:56]} 59. Ke4 {[%emt 0:01:54]}
Re6+ {[%emt 0:00:45]} 60. Kd3 {[%emt 0:04:32]} Nb4+ {[%emt 0:02:51]} 61. Kd2 {
[%emt 0:01:03]} Na6 {[%emt 0:00:26]} 62. Ra5 {[%emt 0:01:08]} Rd6 {[%emt 0:00:
00]} 63. f5 {[%emt 0:02:06]} g5 {[%emt 0:00:00]} 64. Rb5 {[%emt 0:00:00]} Kg8 {
[%emt 0:00:00]} 65. Kd3 {[%emt 0:00:00]} Rd8 {[%emt 0:00:00]} 66. Ke4 {[%emt 0:
00:00]} Re8+ {[%emt 0:00:00]} 67. Re5 {[%emt 0:00:00]} Kf7 {[%emt 0:00:00]} 68.
Rxe8 {[%emt 0:00:00]} Kxe8 {[%emt 0:00:02]} 69. Ke5 {[%emt 0:00:23]} Kf7 {
[%emt 0:00:00]} 70. d5 {[%emt 0:00:00]} Nb4 {[%emt 0:00:00]} 71. Bc5 {[%emt 0:
00:00]} Nd3+ {[%emt 0:00:00]} 72. Kd6 {[%emt 0:00:51]} Nf4 {[%emt 0:00:00]} 73.
Kc7 {[%emt 0:00:00]} Nxd5+ {[%emt 0:00:00]} 74. Kd6 {[%emt 0:00:00]} Nf4 {
[%emt 0:00:00]} 75. Ke5 {[%emt 0:00:00]} Nd3+ {[%emt 0:00:00]} 76. Kd5 {
[%emt 0:00:25]} Nf4+ {[%emt 0:00:37]} 77. Ke4 {[%emt 0:00:00]} Ne2 {[%emt 0:00:
00]} 78. Bd4 {[%emt 0:00:00]} Nc1 {[%emt 0:00:00]} 79. Bc3 {[%emt 0:00:00]} Nb3
{[%emt 0:00:16]} 80. Bb4 {[%emt 0:00:00]} Nc1 {[%emt 0:00:33]} 81. Ke3 {
[%emt 0:00:00]} Kf6 {[%emt 0:05:27]} 82. Kd2 {[%emt 0:00:00]} Nb3+ {[%emt 0:00:
00]} 83. Kc3 {[%emt 0:00:00]} Nc1 {[%emt 0:01:19]} 84. Ba3 {[%emt 0:00:00]}
Ne2+ {[%emt 0:00:01]} 85. Kd3 {[%emt 0:00:00]} Nf4+ {[%emt 0:00:02]} 86. Ke4 {
[%emt 0:00:00]} Nxh3 {[%emt 0:00:06]} 87. Bb2+ {[%emt 0:00:00]} Kf7 {[%emt 0:
00:00]} 88. Bd4 {[%emt 0:00:00]} Nf4 {[%emt 0:00:53]} 89. Be5 {[%emt 0:00:10]}
Ng6 {[%emt 0:00:31]} 90. Bd6 {[%emt 0:06:26]} Nh4 {[%emt 0:00:02]} 91. Bc5 {
[%emt 0:02:01]} Ng6 {[%emt 0:00:02]} 92. Bd4 {[%emt 0:03:05]} Nh4 {[%emt 0:00:
00]} 93. Bc3 {[%emt 0:00:17]} Ng6 {[%emt 0:00:04]} 94. Kd5 {[%emt 0:01:53]}
Nf4+ {[%emt 0:01:02]} 95. Ke4 {[%emt 0:00:35]} Ng6 {[%emt 0:00:12]} 96. Bd2 {
[%emt 0:01:03]} Nh4 {[%emt 0:00:32]} 97. Be3 {[%emt 0:00:07]} Ng6 {[%emt 0:00:
00]} 98. Bxg5 {[%emt 0:00:47]} hxg5 {[%emt 0:00:36]} 99. fxg6+ {[%emt 0:00:03]}
Kxg6 {[%emt 0:01:01]} 100. Ke5 {[%emt 0:00:22]} Kg7 {[%emt 0:01:37]} 101. Kf5 {
[%emt 0:00:33]} Kh7 {[%emt 0:00:12]} 102. Kxg5 {[%emt 0:02:11]} Kg7 {[%emt 0:
00:00]} 103. Kf5 {[%emt 0:00:37]} Kf7 {[%emt 0:00:02]} 104. g5 {[%emt 0:01:31]}
Kg7 {[%emt 0:00:20]} 105. g6 {[%emt 0:00:38]} Kg8 {[%emt 0:00:18]} 106. Kf6 {
[%emt 0:03:39]} Kf8 {[%emt 0:00:03]} 107. Kg5 {[%emt 0:00:22]} Kg7 {[%emt 0:00:
00]} 108. Kh5 {[%emt 0:00:07]} Kg8 {[%emt 0:00:37]} 109. Kh6 {[%emt 0:01:18]}
Kh8 {[%emt 0:00:02]} 110. Kh5 {[%emt 0:00:21]} Kg7 {[%emt 0:00:15]} 111. Kg5 {
[%emt 0:00:20]} Kg8 {[%emt 0:00:05]} 112. Kg4 {[%emt 0:00:30]} Kg7 {[%emt 0:00:
00]} 113. Kf5 {[%emt 0:00:11]} Kg8 {[%emt 0:00:14]} 114. Kf4 {[%emt 0:02:12]}
Kg7 {[%emt 0:00:03]} 115. Kg5 {[%emt 0:00:13]} Kg8 {[%emt 0:00:02]} 116. Kf6 {
[%emt 0:06:38]} Kf8 {[%emt 0:00:02]} 117. Ke6 {[%emt 0:00:35]} Kg7 {[%emt 0:00:
00]} 118. Kf5 {[%emt 0:00:23]} Kg8 {[%emt 0:00:03]} 119. Kf6 {[%emt 0:00:07]}
Kf8 {[%emt 0:00:13]} 1/2-1/2

[Event "44th Chess Olympiad Open 2022"]
[Site "Chennai"]
[Date "2022.08.08"]
[Round "10.82"]
[White "Righi, Ezio"]
[Black "Ismael Mohamed Goumaneh"]
[Result "1-0"]
[WhiteElo "1912"]
[BlackElo "1473"]
[Annotator "NA RC"]
[PlyCount "107"]
[EventDate "2022.??.??"]
[TimeControl "60"]

1. e4 {[%emt 0:00:04]} e5 {[%emt 0:04:07]} 2. Nf3 {[%emt 0:00:14]} Nf6 {
[%emt 0:02:05]} 3. Nxe5 {[%emt 0:00:43]} d6 {[%emt 0:00:02]} 4. Nf3 {[%emt 0:
00:00]} Nxe4 {[%emt 0:00:11]} 5. d4 {[%emt 0:00:16]} d5 {[%emt 0:00:12]} 6. Bd3
{[%emt 0:00:32]} Be7 {[%emt 0:00:03]} 7. O-O {[%emt 0:00:33]} O-O {[%emt 0:00:
00]} 8. Re1 {[%emt 0:00:33]} Nf6 {[%emt 0:00:32]} 9. h3 {[%emt 0:01:48]} c6 {
[%emt 0:00:10]} 10. Bf4 {[%emt 0:01:38]} Nbd7 {[%emt 0:02:21]} 11. Nbd2 {
[%emt 0:03:34]} Re8 {[%emt 0:00:48]} 12. c3 {[%emt 0:00:54]} Nf8 {[%emt 0:00:
00]} 13. Qc2 {[%emt 0:01:16]} Ne6 {[%emt 0:02:37]} 14. Be5 {[%emt 0:01:14]} g6
{[%emt 0:00:29]} 15. Bh2 {[%emt 0:02:17]} Ng7 {[%emt 0:00:48]} 16. Ne5 {
[%emt 0:02:52]} Be6 {[%emt 0:02:22]} 17. Re2 {[%emt 0:01:43]} Nd7 {[%emt 0:00:
00]} 18. Ndf3 {[%emt 0:01:06]} Bf8 {[%emt 0:01:16]} 19. Rae1 {[%emt 0:01:59]}
f6 {[%emt 0:03:08]} 20. Ng4 {[%emt 0:04:49]} Bxg4 {[%emt 0:03:59]} 21. hxg4 {
[%emt 0:00:05]} Rxe2 {[%emt 0:01:31]} 22. Qxe2 {[%emt 0:00:17]} Nb6 {[%emt 0:
00:00]} 23. b3 {[%emt 0:11:35]} a5 {[%emt 0:17:50]} 24. Qd2 {[%emt 0:03:58]} a4
{[%emt 0:02:43]} 25. b4 {[%emt 0:00:15]} g5 {[%emt 0:00:31]} 26. Bc2 {[%emt 0:
00:00]} Qd7 {[%emt 0:02:37]} 27. Qd3 {[%emt 0:00:32]} Ne8 {[%emt 0:00:23]} 28.
Nd2 {[%emt 0:00:19]} Nd6 {[%emt 0:00:51]} 29. f3 {[%emt 0:03:04]} Re8 {[%emt 0:
00:00]} 30. Rxe8 {[%emt 0:03:00]} Nxe8 {[%emt 0:00:03]} 31. Nf1 {[%emt 0:03:42]
} Nd6 {[%emt 0:04:36]} 32. Ne3 {[%emt 0:01:51]} Qf7 {[%emt 0:06:53]} 33. Kf2 {
[%emt 0:04:06]} a3 {[%emt 0:01:10]} 34. Bg3 {[%emt 0:02:39]} Ndc4 {[%emt 0:00:
00]} 35. Nxc4 {[%emt 0:05:40]} Nxc4 {[%emt 0:05:11]} 36. Bb3 {[%emt 0:02:43]}
Kg7 {[%emt 0:05:43]} 37. Bxc4 {[%emt 0:01:39]} dxc4 {[%emt 0:00:03]} 38. Qe4 {
[%emt 0:02:16]} Qd7 {[%emt 0:07:57]} 39. Ke2 {[%emt 0:00:34]} b6 {[%emt 0:00:
00]} 40. Bf2 {[%emt 0:00:33]} b5 {[%emt 0:03:05]} 41. Be3 {[%emt 0:31:31]} h6 {
[%emt 0:31:22]} 42. Bc1 {[%emt 0:00:39]} Qc8 {[%emt 0:00:43]} 43. Kd1 {[%emt 0:
00:00]} Kf7 {[%emt 0:03:36]} 44. Kc2 {[%emt 0:02:22]} Qa8 {[%emt 0:01:40]} 45.
Kb1 {[%emt 0:00:11]} Qa6 {[%emt 0:01:47]} 46. f4 {[%emt 0:02:09]} Kg7 {[%emt 0:
00:00]} 47. Qe6 {[%emt 0:01:25]} Qa8 {[%emt 0:01:01]} 48. f5 {[%emt 0:01:48]}
Qa6 {[%emt 0:00:00]} 49. d5 {[%emt 0:00:00]} Qa4 {[%emt 0:00:00]} 50. dxc6 {
[%emt 0:00:00]} Bxb4 {[%emt 0:00:00]} 51. Qd7+ {[%emt 0:00:00]} Kg8 {[%emt 0:
00:00]} 52. c7 {[%emt 0:00:00]} Bf8 {[%emt 0:00:00]} 53. c8=Q {[%emt 0:00:00]}
Qa5 {[%emt 0:00:00]} 54. Qcc7 {[%emt 0:00:00]} 1-0